bitfinex-derivatives/quotes_ETHF0:USTF0_20250411
["timestamp","ask_amount","ask_price","bid_price","bid_amount"]
[1744360018941,9.42478,1554.2,1554.1,1.29730599]
[1744360019543,8.1372,1554.2,1554.1,1.29730599]
[1744360019734,9.42478,1554.2,1554.1,0.00964599]
[1744360020043,9.42478,1554.2,1554.1,1.29730599]
[1744360020546,8.1372,1554.2,1554.1,1.29730599]
[1744360020844,9.42478,1554.2,1554.1,0.00964599]
[1744360021040,8.1372,1554.2,1554.1,1.29730599]
[1744360021244,11.03507,1554.4,1554.2,1.28754]
[1744360021544,14.00374,1554.4,1554.2,9.23703]
[1744360022036,5.2316,1554.6,1554.2,7.9495]
[1744360022236,1.28735,1554.5,1554.3,1.28746]
[1744360022436,7.8834,1554.4,1554.2,7.9495]
[1744360022634,7.8834,1554.4,1554.2,9.23701]
[1744360022940,7.8834,1554.4,1554.3,1.28749]
[1744360024149,9.17084,1554.4,1554.2,9.23701]
[1744360024442,7.8834,1554.4,1554.3,1.28749]
[1744360024647,7.8834,1554.4,1554.2,1.28752]
[1744360024849,9.17086,1554.4,1554.2,1.28752]
[1744360025045,7.8834,1554.4,1554.3,1.28749]
[1744360025744,9.17081,1554.4,1554.3,1.28749]
[1744360026048,9.17081,1554.4,1554.2,1.28751]
[1744360026248,9.17081,1554.4,1554.3,1.28749]
[1744360026751,7.8834,1554.4,1554.3,1.28749]
[1744360027249,9.17081,1554.4,1554.2,1.28751]
[1744360027848,7.8834,1554.4,1554.3,1.28749]
[1744360028241,11.4366,1554.6,1554.3,4.49529]
[1744360028445,6.205,1554.6,1554.5,4.49513]
[1744360028643,5.8204,1554.7,1554.6,1.28725]
[1744360028644,5.1764,1554.7,1554.6,1.28725]
[1744360029551,15.07128,1554.7,1554.5,1.28728]
[1744360030050,15.07128,1554.7,1554.6,1.28725]
[1744360030250,13.7841,1554.7,1554.6,1.28725]
[1744360031056,107.50434214,1554.9,1554.8,1.28708]
[1744360031351,115.51264214,1554.9,1554.8,1.28708]
[1744360032043,115.51264214,1554.9,1554.4,6.42633]
[1744360032242,8.0083,1554.8,1554.7,1.28716]
[1744360033244,1.28717,1554.7,1554.5,8.5634]
[1744360033551,8.1517,1554.6,1554.5,9.85066]
[1744360033945,10.69236214,1554.9,1554.5,13.5634]
[1744360034149,18.84406214,1554.9,1554.7,1.2871]
[1744360034449,8.1517,1554.8,1554.7,1.2871]
[1744360034860,8.1517,1554.8,1554.6,8.3628]
[1744360035153,1.28716,1554.7,1554.5,1.28727]
[1744360035354,8.1517,1554.6,1554.5,1.28727]
[1744360035653,8.1517,1554.6,1554.5,9.65007]
[1744360036350,9.43895,1554.6,1554.5,9.65007]
[1744360037454,9.43895,1554.6,1554.5,1.28727]
[1744360037650,8.1517,1554.6,1554.3,9.27863]
[1744360037856,9.43896,1554.6,1554.3,7.9912]
[1744360038054,9.43896,1554.6,1554.4,1.28735]
[1744360039753,1.28733,1554.5,1554.4,1.28735]
[1744360039955,8.1517,1554.6,1554.3,9.27863]
[1744360040143,1.28741,1554.5,1554.3,9.27863]
[1744360040343,8.3698,1554.4,1554.3,9.27863]
[1744360042061,1.28758,1554.2,1554.1,6.22898599]
[1744360042253,1.28758,1554.2,1554.1,4.94136599]
[1744360042454,7.47458,1554.2,1554.1,4.94136599]
[1744360042652,20.60788,1554.2,1554.1,4.94136599]
[1744360043554,1.28783,1553.9,1553.8,15.11559306]
[1744360043858,10.68263,1553.9,1553.8,15.11559306]
[1744360044457,18.81593,1553.9,1553.8,15.11559306]
[1744360044655,18.81593,1553.9,1553.7,0.00964599]
[1744360044859,8.1333,1553.8,1553.7,0.00964599]
[1744360045260,9.3948,1553.9,1553.7,1.29757599]
[1744360045556,9.39351,1553.8,1553.7,0.00964599]
[1744360046761,14.49271,1553.8,1553.7,0.00964599]
[1744360047464,1.28799,1553.7,1553.6,6.40728449]
[1744360047650,1.28816,1553.5,1553.4,12.63383621]
[1744360047849,1.28832,1553.3,1553.2,29.9856288]
[1744360048054,4.49612,1553.3,1553.2,29.9856288]
[1744360048254,3.2078,1553.3,1553.2,29.9856288]
[1744360048454,4.49612,1553.3,1553.2,29.9856288]
[1744360049267,1.28841,1553.2,1553.1,0.00964599]
[1744360049469,7.47841,1553.2,1553.1,0.00964599]
[1744360049767,6.19,1553.2,1553.1,0.00964599]
[1744360050067,7.47841,1553.2,1553.1,0.00964599]
[1744360050267,6.19,1553.2,1553.1,1.29813599]
[1744360050468,6.19,1553.2,1553.1,0.00964599]
[1744360050769,6.19,1553.2,1553.1,1.29813599]
[1744360051464,98.135,1553.4,1553.1,5.00964599]
[1744360051667,98.135,1553.4,1553.2,7.9221]
[1744360051871,6.19,1553.5,1553.3,1.28825]
[1744360052063,14.5495,1553.5,1553.4,7.9221]
[1744360052470,14.5495,1553.5,1553.4,9.21034]
[1744360052768,14.5495,1553.5,1553.4,7.9221]
[1744360053159,15.83766,1553.5,1553.2,1.28838]
[1744360053355,15.83766,1553.5,1553.3,7.9221]
[1744360053560,15.1935,1553.5,1553.3,7.9221]
[1744360053756,14.5495,1553.5,1553.4,1.28824]
[1744360053957,6.19,1553.5,1553.4,1.28824]
[1744360054165,6.19,1553.5,1553.4,14.61784]
[1744360054668,6.19,1553.5,1553.4,19.41024]
[1744360054967,6.19,1553.5,1553.4,18.122]
[1744360055470,7.47816,1553.5,1553.4,18.122]
[1744360055670,14.7754,1553.5,1553.4,19.41024]
[1744360056269,6.19,1553.5,1553.4,19.41024]
[1744360059975,6.19,1553.5,1553.1,3.21744599]
[1744360060178,7.9191,1553.4,1553.2,8.2005]
[1744360060480,7.9191,1553.4,1553.3,1.28832]
[1744360060776,6.19,1553.5,1553.4,1.28824]
[1744360060969,14.8036,1553.5,1553.2,8.2005]
[1744360061169,14.8036,1553.5,1553.3,1.28827]
[1744360061170,16.09177,1553.5,1553.3,1.28827]
[1744360062082,14.8036,1553.5,1553.4,1.28824]
[1744360062378,16.09177,1553.5,1553.3,1.28826]
[1744360062578,14.8036,1553.5,1553.3,1.28826]
[1744360062879,14.8036,1553.5,1553.4,1.28824]
[1744360063779,16.09178,1553.5,1553.3,9.91526]
[1744360063979,8.0314,1553.4,1553.3,9.91526]
[1744360065376,6.19,1553.5,1553.4,1.28824]
[1744360065682,6.19,1553.5,1553.4,11.11654]
[1744360065885,6.19,1553.5,1553.4,19.74354]
[1744360066979,8.0314,1553.7,1553.6,1.28807]
[1744360067182,6.172,1553.8,1553.7,1.28799]
[1744360069577,16.15101,1553.8,1553.7,1.28799]
[1744360069981,14.8631,1553.8,1553.7,1.28799]
[1744360070688,8.6911,1553.8,1553.7,1.28799]
[1744360070983,10.68869354,1554.0,1553.6,8.6432]
[1744360071281,19.37979354,1554.0,1553.9,1.28783]
[1744360071480,10.68869354,1554.0,1553.9,1.28783]
[1744360071787,11.90854599,1554.0,1553.9,1.28783]
[1744360071988,13.19628599,1554.0,1553.8,9.64805]
[1744360072189,8.6911,1553.9,1553.8,9.64805]
[1744360072488,8.6911,1553.9,1553.8,1.28785]
[1744360073475,3.21744599,1554.0,1553.9,1.28783]
[1744360073681,0.00964599,1554.0,1553.9,1.28783]
[1744360074384,8.21744599,1554.0,1553.5,6.42819]
[1744360074587,1.28797,1553.8,1553.6,1.28805]
[1744360074786,4.50524599,1554.0,1553.5,15.1162]
[1744360074984,1.28783,1553.9,1553.7,1.28797]
[1744360075288,1.28792,1553.8,1553.6,9.97601]
[1744360075684,8.6651,1553.7,1553.5,1.28809]
[1744360075985,1.28819,1553.5,1553.1,0.00964599]
[1744360076177,8.6651,1553.4,1553.3,1.28829]
[1744360078087,8.6651,1553.4,1553.3,1.28832]
[1744360078790,6.171,1553.5,1553.4,1.28824]
[1744360079390,3.2078,1553.6,1553.5,1.28816]
[1744360079586,11.7219,1553.6,1553.5,1.28816]
[1744360079791,1.28816,1553.5,1553.3,9.59036]
[1744360079993,8.5141,1553.5,1553.4,1.28824]
[1744360080986,9.3788,1553.8,1553.6,1.28804]
[1744360081186,8.5141,1553.7,1553.6,1.28804]
[1744360081791,8.5141,1553.7,1553.6,9.38134]
[1744360082197,14.6417,1553.8,1553.7,1.28799]
[1744360082684,6.171,1553.8,1553.7,1.28799]
[1744360083399,105.65289354,1554.0,1553.9,1.28783]
[1744360083687,7.48089354,1554.0,1553.9,1.28783]
[1744360083897,15.95159354,1554.0,1553.9,1.28783]
[1744360084796,7.48089354,1554.0,1553.9,1.28783]
[1744360085093,16.02729354,1554.0,1553.9,1.28783]
[1744360085295,16.02729354,1554.0,1553.9,9.26323]
[1744360085597,1.28783,1553.9,1553.7,3.2078]
[1744360085796,8.5464,1553.9,1553.7,1.28795]
[1744360086092,14.92236,1553.9,1553.7,1.28795]
[1744360086288,1.28791,1553.8,1553.7,1.28795]
[1744360086493,8.5464,1553.8,1553.7,1.28799]
[1744360090998,7.47124755,1553.9,1553.8,1.28791]
[1744360091799,15.56924755,1553.9,1553.8,1.28791]
[1744360091999,7.47124755,1553.9,1553.7,8.3305]
[1744360092202,7.47124755,1553.9,1553.8,4.49571]
[1744360092400,7.47124755,1553.9,1553.8,1.28791]
[1744360092701,15.56924755,1553.9,1553.8,4.49571]
[1744360093091,16.85709755,1553.9,1553.7,8.3305]
[1744360093295,9.38591,1553.8,1553.7,8.3305]
[1744360093499,8.098,1553.8,1553.7,1.28799]
[1744360093798,9.06400665,1553.8,1553.7,1.28799]
[1744360093997,10.35195665,1553.8,1553.6,9.61854]
[1744360094400,8.4206,1553.7,1553.6,9.61854]
[1744360095299,9.70859,1553.7,1553.6,1.28804]
[1744360095496,8.4206,1553.7,1553.6,1.28804]
[1744360095901,8.4206,1553.7,1553.5,1.28811]
[1744360096200,9.70862,1553.7,1553.5,1.28811]
[1744360097204,8.4206,1553.7,1553.6,1.28807]
[1744360098192,8.4206,1553.7,1553.5,9.60249]
[1744360098400,1.28811,1553.6,1553.4,5.1251]
[1744360098599,7.9466,1553.5,1553.4,14.72774]
[1744360100806,9.23476,1553.5,1553.4,1.28824]
[1744360101100,7.9466,1553.5,1553.3,8.1849]
[1744360101303,1.28828,1553.4,1553.2,13.99826]
[1744360101500,8.2855,1553.3,1553.2,20.8948]
[1744360101709,1.28841,1553.2,1553.1,10.0532653]
[1744360102009,1.28841,1553.2,1553.1,0.00964599]
[1744360102199,8.2855,1553.3,1553.2,1.28841]
[1744360102805,9.57383,1553.3,1553.1,1.29808599]
[1744360103003,9.3578,1553.4,1553.3,1.28832]
[1744360104006,9.3578,1553.4,1553.3,6.16122]
[1744360104609,7.47124755,1553.6,1553.5,1.28816]
[1744360105304,7.47124755,1553.6,1553.5,4.49596]
[1744360105506,7.47124755,1553.6,1553.5,9.49596]
[1744360106206,7.47124755,1553.6,1553.5,4.49596]
[1744360106510,9.91520369,1553.6,1553.5,4.49596]
[1744360108916,8.62603369,1553.6,1553.5,9.49596]
[1744360109612,8.62603369,1553.6,1553.5,42.08816]
[1744360109912,8.62603369,1553.6,1553.5,1.28816]
[1744360110113,17.07733369,1553.6,1553.5,1.28816]
[1744360110311,8.4513,1553.6,1553.5,1.28816]
[1744360111816,4.49582,1553.7,1553.6,1.28807]
[1744360112017,1.28807,1553.6,1553.5,1.28811]
[1744360112509,9.70247,1553.6,1553.5,1.28811]
[1744360112811,8.4144,1553.6,1553.5,1.28811]
[1744360113905,9.70253,1553.6,1553.4,9.34558]
[1744360114618,1.28816,1553.5,1553.4,9.34558]
[1744360114817,9.70254,1553.6,1553.4,9.34558]
[1744360115011,18.21582316,1553.6,1553.5,1.28816]
[1744360115319,16.92768316,1553.6,1553.5,1.28816]
[1744360115511,18.21575316,1553.6,1553.4,9.34557]
[1744360115710,8.1725,1553.5,1553.4,9.34557]
[1744360118318,9.80135316,1553.6,1553.5,1.28816]
[1744360118720,8.51328316,1553.6,1553.5,1.28816]
[1744360119018,16.68668316,1553.6,1553.5,1.28816]
[1744360119517,7.54713634,1553.6,1553.5,1.28816]
[1744360119916,7.54713634,1553.6,1553.5,14.69936]
[1744360120615,6.34e-06,1553.6,1553.5,20.82736]
[1744360121125,6.34e-06,1553.6,1553.5,14.69936]
[1744360123120,13.21488055,1554.0,1553.9,1.28783]
[1744360123714,14.50262055,1554.0,1553.9,1.28783]
[1744360124115,14.50262055,1554.0,1553.8,19.34555]
[1744360124421,8.4297,1553.9,1553.8,19.34555]
[1744360124820,5.03768055,1554.0,1553.9,1.28783]
[1744360125015,13.46738055,1554.0,1553.9,1.28783]
[1744360125217,18.46738055,1554.0,1553.5,3.2078]
[1744360125419,1.28824,1553.4,1553.3,10.04361931]
[1744360125722,10.62304,1553.4,1553.3,10.04361931]
[1744360125908,9.3348,1553.4,1553.3,11.33193931]
[1744360126111,5.03768055,1554.0,1553.9,1.28783]
[1744360127319,17.1574356,1554.0,1553.8,9.36029]
[1744360127519,1.28785,1553.9,1553.7,1.28794]
[1744360128030,1.28793,1553.8,1553.6,9.89671]
[1744360128322,9.3348,1553.8,1553.5,1.28811]
[1744360128522,9.7517,1553.7,1553.6,1.28807]
[1744360128711,4.9902,1553.7,1553.6,1.28807]
[1744360129116,6.127,1553.8,1553.7,1.28799]
[1744360129418,14.2038,1553.8,1553.7,1.28799]
[1744360130021,14.2038,1553.8,1553.7,9.89669]
[1744360131515,17.71596214,1554.0,1553.9,1.28783]
[1744360131916,12.58426214,1554.0,1553.9,1.28783]
[1744360132621,9.41875214,1554.0,1553.9,11.29743]
[1744360132821,75.73030876,1554.5,1553.9,11.29743]
[1744360132822,75.73030876,1554.5,1554.4,1.28741]
[1744360133026,75.73030876,1554.5,1554.2,1.28756]
[1744360133226,12.59028,1554.4,1554.2,42.08756]
[1744360133419,8.095,1554.3,1554.2,42.08756]
[1744360133820,8.095,1554.3,1554.2,4.49536]
[1744360134122,6.13664599,1554.4,1554.3,1.28749]
[1744360134317,8.10464599,1554.4,1554.3,1.28749]
[1744360134623,0.00964599,1554.4,1554.3,9.34989]
[1744360134824,0.00964599,1554.4,1554.3,14.35949]
[1744360139030,0.00964599,1554.4,1554.3,1.28749]
[1744360139227,1.28749,1554.3,1554.1,54.46334599]
[1744360139429,8.6195,1554.2,1554.1,55.75100599]
[1744360139623,1.29707599,1554.4,1554.1,54.46334599]
[1744360139824,9.91657599,1554.4,1554.1,54.46334599]
[1744360140018,9.91657599,1554.4,1554.2,8.1006]
[1744360140523,8.62914599,1554.4,1554.3,1.28749]
[1744360141031,0.00964599,1554.4,1554.3,1.28749]
[1744360141230,0.00964599,1554.4,1554.2,11.3084]
[1744360141231,0.00964599,1554.4,1554.1,45.74244599]
[1744360141428,8.62914599,1554.4,1554.3,1.28749]
[1744360142430,8.62914599,1554.4,1554.3,4.49529]
[1744360142627,8.62914599,1554.4,1554.3,1.28749]
[1744360142930,5.00964599,1554.4,1554.1,0.00964599]
[1744360143131,1.28758,1554.2,1554.1,0.00964599]
[1744360143319,18.6051,1554.3,1554.1,0.00964599]
[1744360143320,19.89266,1554.3,1554.1,0.00964599]
[1744360143521,8.5629,1554.2,1554.1,0.00964599]
[1744360143830,9.85048,1554.2,1554.1,0.00964599]
[1744360144529,20.97548,1554.2,1554.1,0.00964599]
[1744360146830,1.28801,1553.7,1553.5,11.33173931]
[1744360147031,1.28807,1553.6,1553.5,10.04361931]
[1744360147421,1.28807,1553.6,1553.4,10.07531]
[1744360147618,8.4158,1553.5,1553.4,10.07531]
[1744360150534,9.70396,1553.5,1553.4,8.7871]
[1744360151935,9.70396,1553.5,1553.4,10.07534]
[1744360152140,8.4158,1553.5,1553.4,10.07534]
[1744360152439,9.70396,1553.5,1553.4,10.07534]
[1744360153238,1.28824,1553.4,1553.3,0.00964599]
[1744360153932,1.28824,1553.4,1553.3,8.51374599]
[1744360154134,9.46004,1553.4,1553.3,8.51374599]
[1744360155138,9.46004,1553.4,1553.3,0.00964599]
[1744360157336,8.1718,1553.4,1553.3,1.29796599]
[1744360157637,4.908,1553.5,1553.3,0.00964599]
[1744360157833,6.19618,1553.5,1553.3,0.00964599]
[1744360158036,4.908,1553.5,1553.3,1.29793599]
[1744360158237,1.28817,1553.5,1553.4,1.28824]
[1744360158540,1.28817,1553.5,1553.4,8.6172]
[1744360158749,1.28824,1553.4,1553.3,1.29795599]
[1744360159051,9.81854,1553.4,1553.3,1.29796599]
[1744360159653,9.81854,1553.4,1553.3,0.00964599]
[1744360160147,9.81854,1553.4,1553.3,1.29796599]
[1744360160543,1.29777599,1553.6,1553.3,3.21744599]
[1744360160744,1.29777599,1553.6,1553.5,1.28816]
[1744360160943,1.29777599,1553.6,1553.4,19.43338]
[1744360161245,9.83847599,1553.6,1553.5,8.4883]
[1744360161651,8.55034599,1553.6,1553.3,0.00964599]
[1744360161956,19.94827599,1553.6,1553.4,1.28821]
[1744360162147,19.94827599,1553.6,1553.4,8.4883]
[1744360162348,19.94827599,1553.6,1553.4,9.77647]
[1744360162550,19.94827599,1553.6,1553.4,9.77646]
[1744360163057,19.94827599,1553.6,1553.5,1.28816]
[1744360163257,0.00964599,1553.6,1553.5,1.28816]
[1744360163448,0.00964599,1553.6,1553.5,6.34326]
[1744360163650,0.00964599,1553.6,1553.4,8.4883]
[1744360163850,1.28816,1553.5,1553.4,9.77654]
[1744360164156,8.39404599,1553.6,1553.4,8.4883]
[1744360164457,0.00964599,1553.6,1553.5,1.28816]
[1744360164759,0.00964599,1553.6,1553.5,6.11716]
[1744360165757,0.00964599,1553.6,1553.5,14.32496]
[1744360167960,5.02394448,1553.9,1553.8,1.28791]
[1744360168561,5.02394448,1553.9,1553.8,9.81991]
[1744360168949,5.02394448,1553.9,1553.8,8.532]
[1744360168950,6.31177448,1553.9,1553.8,8.532]
[1744360169459,5.02394448,1553.9,1553.8,8.532]
[1744360169664,5.02394448,1553.9,1553.8,18.02771]
[1744360170465,5.02394448,1553.9,1553.8,13.02771]
[1744360171265,1.29739599,1554.0,1553.9,1.28783]
[1744360171460,1.29739599,1554.0,1553.9,14.69143]
[1744360171666,0.00964599,1554.0,1553.9,14.69143]
[1744360171871,1.29738599,1554.0,1553.9,14.69143]
[1744360172369,0.00964599,1554.0,1553.9,14.69143]
[1744360176771,1.28786,1553.9,1553.8,1.28789]
[1744360177174,9.76916,1553.9,1553.8,1.28789]
[1744360177669,1.28791,1553.8,1553.7,10.04384]
[1744360177873,1.28799,1553.7,1553.6,11.29514]
[1744360178071,8.4813,1553.7,1553.6,20.05104]
[1744360178370,1.28796,1553.8,1553.6,18.763]
[1744360178669,1.28796,1553.8,1553.6,1.28801]
[1744360178670,1.28795,1553.8,1553.6,1.28801]
[1744360178873,1.28795,1553.8,1553.6,7.9821]
[1744360179171,1.28795,1553.8,1553.6,9.27009]
[1744360179877,8.7253,1553.9,1553.6,7.9821]
[1744360180068,1.28794,1553.8,1553.6,14.42073]
[1744360180267,8.7253,1553.7,1553.6,14.42073]
[1744360180970,10.01329,1553.7,1553.5,1.2881]
[1744360181166,10.01329,1553.7,1553.5,7.9821]
[1744360181576,8.7253,1553.7,1553.6,1.28807]
[1744360181774,4.50524599,1554.0,1553.5,14.41028]
[1744360181976,1.28783,1553.9,1553.7,1.28795]
[1744360182274,1.28783,1553.9,1553.7,1.28792]
[1744360182476,9.71013,1553.9,1553.7,1.28792]
[1744360182969,8.4223,1553.9,1553.8,1.28791]
[1744360183480,0.00964599,1554.0,1553.9,1.28783]
[1744360184177,0.00964599,1554.0,1553.9,9.23703]
[1744360185180,1.29738599,1554.0,1553.9,9.23703]
[1744360185872,8.55574599,1554.0,1553.9,9.23703]
[1744360186071,0.00964599,1554.0,1553.9,9.23703]
[1744360192274,1.28783,1553.9,1553.7,4.989]
[1744360192473,8.8994,1553.8,1553.7,6.27699]
[1744360192680,8.8994,1553.8,1553.7,15.23859]
[1744360192979,0.65364599,1554.0,1553.9,1.28783]
[1744360193181,0.00964599,1554.0,1553.9,1.28783]
[1744360193381,5.65364599,1554.0,1553.9,1.28783]
[1744360193774,0.00964599,1554.0,1553.9,1.28783]
[1744360194376,0.00964599,1554.0,1553.9,10.16913]
[1744360195680,0.00964599,1554.0,1553.9,14.92663]
[1744360196582,1.29738599,1554.0,1553.9,1.28783]
[1744360196875,1.29738599,1554.0,1553.5,3.22038]
[1744360196876,1.28787,1553.9,1553.5,3.22038]
[1744360197081,8.3812,1553.9,1553.8,1.28791]
[1744360197886,14.72093,1553.9,1553.7,1.28793]
[1744360198387,8.3812,1553.8,1553.7,1.28793]
[1744360198576,1.28799,1553.7,1553.4,16.0641]
[1744360198779,8.3812,1553.6,1553.5,1.28816]
[1744360198982,8.3812,1553.6,1553.5,9.80256]
[1744360199389,1.28795,1553.8,1553.7,1.28799]
[1744360199590,8.3812,1553.8,1553.7,1.28799]
[1744360200578,19.19919047,1554.0,1553.7,3.2078]
[1744360200786,19.19919047,1554.0,1553.9,1.28783]
[1744360201094,8.24139047,1554.0,1553.9,1.28783]
[1744360201388,13.24139047,1554.0,1553.7,5.1207]
[1744360201586,8.5681,1553.9,1553.5,3.2078]
[1744360201893,4.9393,1553.8,1553.6,1.28804]
[1744360202079,9.85609,1553.7,1553.5,10.29072]
[1744360202282,1.28808,1553.6,1553.5,1.28813]
[1744360202994,1.28816,1553.5,1553.4,15.30689]
[1744360203287,1.28824,1553.4,1553.3,3.21744599]
[1744360203491,1.28824,1553.4,1553.3,0.00964599]
[1744360203690,8.8371,1553.5,1553.3,0.00964599]
[1744360203991,8.8371,1553.5,1553.4,1.28824]
[1744360204296,6.081,1553.7,1553.6,1.28807]
[1744360204486,16.9842,1553.8,1553.7,1.28799]
[1744360204686,24.51241771,1553.8,1553.7,1.28799]
[1744360204994,19.57311771,1553.8,1553.7,1.28799]
[1744360206791,16.36531771,1553.8,1553.7,1.28799]
[1744360207000,16.36531771,1553.8,1553.7,4.49579]
[1744360208095,8.8371,1553.8,1553.7,4.49579]
[1744360208283,5.03044223,1553.9,1553.8,1.28791]
[1744360208485,5.03044223,1553.9,1553.8,17.8575]
[1744360208685,5.03044223,1553.9,1553.5,3.2078]
[1744360208893,8.1982,1553.8,1553.7,1.28795]
[1744360209196,8.1982,1553.8,1553.6,8.2825]
[1744360209390,8.1982,1553.8,1553.7,1.28799]
[1744360211003,10.19834223,1553.9,1553.8,1.28791]
[1744360211297,5.03044223,1553.9,1553.8,10.07251]
[1744360211496,14.03094223,1553.9,1553.8,10.07251]
[1744360212408,16.52871771,1553.9,1553.8,10.07251]
[1744360213698,17.81654771,1553.9,1553.7,1.28795]
[1744360213893,17.81654771,1553.9,1553.5,16.00319]
[1744360213894,10.05051,1553.8,1553.6,1.28803]
[1744360214100,1.28799,1553.7,1553.5,10.86308]
[1744360214301,8.7626,1553.6,1553.5,10.86308]
[1744360214500,11.23303,1553.8,1553.7,1.28799]
[1744360214797,9.9451,1553.8,1553.7,1.28799]
[1744360215498,9.9451,1553.8,1553.6,9.65813]
[1744360215697,9.9451,1553.8,1553.7,1.28799]
[1744360215890,18.4801,1553.8,1553.7,1.28799]
[1744360216098,8.535,1553.8,1553.7,1.28799]
[1744360216502,7.52821771,1553.8,1553.7,1.28799]
[1744360217901,7.52821771,1553.8,1553.7,4.49579]
[1744360218296,7.52821771,1553.8,1553.7,9.49579]
[1744360218597,6.21156771,1553.8,1553.7,9.49579]
[1744360218797,4.85925771,1553.8,1553.7,9.49579]
[1744360218992,7.67296886,1553.9,1553.8,1.28791]
[1744360219193,5.03600279,1553.9,1553.8,14.79561]
[1744360219405,5.03600279,1553.9,1553.8,19.79561]
[1744360219596,5.03600279,1553.9,1553.8,14.79561]
[1744360221995,13.18800279,1553.9,1553.8,14.79561]
[1744360222395,14.47583279,1553.9,1553.7,3.2078]
[1744360222596,9.43991,1553.8,1553.6,14.8475]
[1744360222796,1.28799,1553.7,1553.6,16.13552]
[1744360223100,1.28799,1553.7,1553.5,7.9938]
[1744360223101,3.2078,1553.7,1553.4,1.28822]
[1744360223304,18.4304,1553.6,1553.3,23.3398253]
[1744360223604,8.152,1553.5,1553.4,21.39644551]
[1744360224309,9.44016,1553.5,1553.4,21.39644551]
[1744360224803,8.152,1553.5,1553.4,21.39644551]
[1744360225003,14.44016,1553.5,1553.4,20.10820551]
[1744360225203,17.64796,1553.5,1553.4,20.10820551]
[1744360228008,18.29196,1553.5,1553.4,5.09384551]
[1744360228196,1.28824,1553.4,1553.3,25.08681742]
[1744360228398,9.53094,1553.4,1553.3,25.08681742]
[1744360228599,14.53094,1553.4,1553.3,10.88632742]
[1744360228798,14.53094,1553.4,1553.3,4.80595742]
[1744360229106,1.28865,1552.9,1552.8,10.10628748]
[1744360229304,10.55445,1552.9,1552.8,10.10628748]
[1744360229896,18.79715,1552.9,1552.8,10.10628748]
[1744360232204,17.5085,1552.9,1552.8,17.83263521]
[1744360232404,6.058,1552.9,1552.8,26.66793521]
[1744360233100,0.00964599,1553.0,1552.9,1.28865]
[1744360233297,0.00964599,1553.0,1552.9,26.48845773]
[1744360233501,0.00964599,1553.0,1552.9,34.69625773]
[1744360233896,12.53409413,1553.2,1553.1,1.28849]
[1744360234100,12.53409413,1553.2,1553.1,10.93389773]
[1744360234306,12.53409413,1553.2,1553.1,15.93389773]
[1744360234505,12.53409413,1553.2,1553.1,10.93389773]
[1744360235411,12.53409413,1553.2,1553.1,7.72609773]
[1744360235807,12.53409413,1553.2,1553.1,10.93389773]
[1744360236606,12.53409413,1553.2,1553.1,15.93389773]
[1744360237009,0.00964599,1553.3,1553.2,1.28841]
[1744360237210,0.00964599,1553.3,1553.2,16.47571773]
[1744360241507,0.00964599,1553.3,1553.2,21.64891773]
[1744360244513,5.99e-06,1553.3,1553.2,26.64891773]
[1744360244914,18.57009413,1553.9,1553.8,1.28791]
[1744360245110,12.53409413,1553.9,1553.8,1.28791]
[1744360245306,12.53409413,1553.9,1553.8,2.71412715]
[1744360245906,12.53409413,1553.9,1553.8,10.90732715]
[1744360246510,12.53409413,1553.9,1553.8,14.11512715]
[1744360248609,0.00964599,1554.0,1553.9,1.28783]
[1744360248816,0.00964599,1554.0,1553.9,10.90724715]
[1744360251013,5.99e-06,1554.0,1553.9,10.90724715]
[1744360251913,5.99e-06,1554.0,1553.9,11.38589654]
[1744360252512,16.06281514,1554.6,1554.5,1.28733]
[1744360252907,16.06281514,1554.6,1554.5,2.71354116]
[1744360253308,10.02781514,1554.6,1554.5,11.51914116]
[1744360254017,7.3101999,1554.7,1554.6,1.28725]
[1744360254213,15.00867516,1554.9,1554.8,1.28708]
[1744360254814,15.00867516,1554.9,1554.8,42.08708]
[1744360255020,24.03507516,1554.9,1554.8,1.28708]
[1744360255615,15.00867516,1554.9,1554.8,4.49488]
[1744360255819,15.00867516,1554.9,1554.8,13.46388]
[1744360256023,8.8507,1555.1,1555.0,1.28691]
[1744360256222,10.1283,1555.2,1555.1,1.28683]
[1744360256719,9.2408,1555.3,1555.2,1.28675]
[1744360256918,6.033,1555.3,1555.2,1.28675]
[1744360257621,13.2221,1555.5,1555.4,1.28658]
[1744360258022,1.28665,1555.4,1555.2,1.28672]
[1744360258213,10.5265,1555.3,1555.1,1.2868]
[1744360258616,14.2398,1555.3,1554.7,53.26729599]
[1744360258817,10.52651,1555.3,1555.1,1.28683]
[1744360259424,15.52651,1555.3,1555.1,1.28683]
[1744360259723,10.52651,1555.3,1555.1,1.28683]
[1744360259927,9.2398,1555.3,1555.2,1.28675]
[1744360260335,14.2398,1555.3,1555.2,1.28675]
[1744360260634,15.52647,1555.3,1555.1,1.28678]
[1744360260827,10.52647,1555.3,1555.1,1.28678]
[1744360261026,9.2398,1555.3,1555.2,1.28675]
[1744360261226,6.032,1555.3,1555.2,1.28675]
[1744360262128,6.032,1555.3,1555.2,9.75725]
[1744360262837,13.2221,1555.5,1555.4,1.28658]
[1744360263027,6.03,1555.7,1555.6,1.28642]
[1744360263534,0.50210993,1556.4,1556.3,1.28584]
[1744360263836,0.50210993,1556.4,1556.2,1.28592]
[1744360264033,0.6432,1556.3,1556.1,1.28594]
[1744360264336,3.2078,1556.2,1555.8,3.2078]
[1744360264534,3.2078,1556.2,1556.1,1.28598]
[1744360264938,6.6732,1556.3,1556.1,1.28598]
[1744360265137,6.6732,1556.3,1556.2,1.28592]
[1744360265633,6.03,1556.3,1556.2,1.28592]
[1744360265935,0.6432,1556.7,1556.2,3.2078]
[1744360266137,4.49349,1556.5,1556.3,1.28584]
[1744360266336,3.2078,1556.5,1556.4,1.28576]